Cogmind - Beta 14 @@@ ROGUE MODE // 2024.12.25 @ 22:24:16 Player: Alien Result: Destroyed by SO-3X1(R) with Subdweller Laser Performance ------------- Evolutions (0) 0 Regions Visited (3) 600 Robots Destroyed (35) 175 Value Destroyed (804) 804 Prototype IDs (0) 0 Alien Tech Used (0) 0 Bonus (0) 0 TOTAL SCORE: 1579 Bonus ------- None Cogmind --------- Core Integrity 0/250 Matter 275/300 Energy 248/250 System Corruption 10% Temperature Cool (6) Movement Rolling (131) Ox3 Location -10/Subcaves Parts ------- > --- POWER (1) -------- Ion Engine > --- PROPULSION (2) --- Wheel Subdweller Monowheel > --- UTILITY (2) ------ Huge Storage Unit Makeshift Light Armor Plating > --- WEAPON (2) ------- Makeshift Shrapnel Gun > --- INVENTORY (25) --- Ion Engine Heat Sink Improved Heat Sink High-capacity Matter Pod (200) Subdweller Optics Subdweller Optics Medium Armor Plating Medium Armor Plating Medium Armor Plating Hacking Suite Riot Gun Subdweller Laser Beam Cannon Subdweller Beam Cannon Heavy Battle Rifle Light Cannon Light Cannon Light Cannon Grenade Launcher Mini Grenade Launcher Mini Grenade Launcher Mini Grenade Launcher Datajack Flail Peak State ------------ > --- POWER ------------ Ion Engine > --- PROPULSION ------- Wheel Subdweller Monowheel > --- UTILITY ---------- Huge Storage Unit Makeshift Light Armor Plating > --- WEAPON ----------- Makeshift Shrapnel Gun Battle Cannon > --- INVENTORY -------- Ion Engine Heat Sink Improved Heat Sink High-capacity Matter Pod Subdweller Optics Subdweller Optics Medium Armor Plating Medium Armor Plating Medium Armor Plating Hacking Suite Riot Gun Subdweller Laser Beam Cannon Subdweller Beam Cannon Heavy Battle Rifle Light Cannon Light Cannon Light Cannon Grenade Launcher Mini Grenade Launcher Mini Grenade Launcher Mini Grenade Launcher Datajack Flail [Rating: 19] Favorites ----------- Power Ion Engine Engine Ion Engine Power Core Light Nuclear Core Propulsion Light Treads Treads Light Treads Wheel Wheel Utility Huge Storage Unit Device Seismic Detector Storage Huge Storage Unit Processor Signal Interpreter Protection Medium Armor Plating Weapon Assault Rifle Energy Cannon Beam Cannon Ballistic Gun Assault Rifle Ballistic Cannon Light Cannon Launcher Mini Grenade Launcher Build | -11 -10 -10 -10 ------- Run | Yrd Mat Min Sub Slots Evolved . | . . . . Power . | . . . . Propulsion . | . . . . Utility . | . . . . Weapon . | . . . . Parts Attached 37 | 7 7 9 14 Power 4 | 1 1 1 1 Engine 3 | 1 . 1 1 Core 1 | . 1 . . Reactor . | . . . . Propulsion 8 | 2 . 3 3 Treads 4 | 2 . 2 . Leg . | . . . . Wheel 4 | . . 1 3 Hover . | . . . . Flight . | . . . . Utility 6 | 2 1 1 2 Device 1 | 1 . . . Storage 2 | 1 1 . . Processor 1 | . . 1 . Hackware . | . . . . Protection 2 | . . . 2 Artifact . | . . . . Weapon 19 | 2 5 4 8 Energy Gun . | . . . . Energy Cannon 1 | . 1 . . Ballistic Gun 6 | 2 1 . 3 Ballistic Cannon 9 | . 2 2 5 Launcher 3 | . 1 2 . Special Weapon . | . . . . Impact Weapon . | . . . . Slashing Weapon . | . . . . Piercing Weapon . | . . . . Special Melee Weapon . | . . . . Unidentified Prototypes . | . . . . Parts Lost 8 | . . 6 2 Power 2 | . . 1 1 Propulsion 4 | . . 3 1 Utility 1 | . . 1 . Weapon 1 | . . 1 . Highest Loss Streak 6 | . . 6 2 To Critical Strikes . | . . . . Average Slot Usage (%) 97 | . 100 91 94 Engine 10 | . 11 4 11 Core 2 | . 2 8 . Treads 22 | . 28 23 11 Wheel 4 | . . 2 14 Device 9 | . 14 8 . Storage 14 | . 14 14 14 Protection 4 | . . . 14 Ballistic Gun 10 | . 16 . 3 Ballistic Cannon 11 | . 6 22 17 Launcher 5 | . 4 5 7 Peak Build Rating 19 | 7 12 12 19 Average Rating 10 | 5 8 11 13 On Entrance 7 | . 7 12 11 Naked Turns . | . . . . Heaviest Build 98 | 15 92 92 98 Greatest Support 40 | 40 40 40 30 Greatest Overweight (x) 9 | . 2 8 9 Average Overweight (x) 3 | . 1 3 6 Largest Inventory Capacity 25 | 8 25 25 25 Average Capacity 23 | 7 24 25 25 Most Carried 25 | 2 25 25 25 Average Carried 17 | 1 16 23 21 Final Capacity 25 | 8 25 25 25 Final Carried 25 | 2 25 20 24 Class Distribution -------------------- 100% | Mutant Dominant Class ---------------- Mutant | -10/Materials Mutant | -10/Mines Mutant | -10/Subcaves Resources | -11 -10 -10 -10 ----------- Run | Yrd Mat Min Sub Matter Collected 1433 | 324 549 130 430 Remotely . | . . . . Salvage Created 1082 | 187 598 158 139 Parts 79 | 21 39 10 9 Haulers Intercepted 2 | . 2 . . Recyclers Shooed 1 | 1 . . . Parts Field Recycled . | . . . . Retrieved Matter . | . . . . Parts Self-Destructed 3 | . . . 3 Prevented . | . . . . Kills | -11 -10 -10 -10 ------- Run | Yrd Mat Min Sub Combat Hostiles Destroyed 29 | . 11 10 8 Guns 8 | . 7 . 1 Cannons 11 | . 4 3 4 AOE 10 | . . 7 3 Classes Destroyed 12 | 3 5 3 1 Worker 1 | 1 . . . Builder 1 | . . 1 . Tunneler 5 | 5 . . . Hauler 2 | . 2 . . Recycler 2 | 1 1 . . Operator 1 | . 1 . . Watcher 1 | . 1 . . Swarmer 6 | . 3 . 3 Grunt 10 | . 8 2 . Demolisher 1 | . . 1 . Subdweller 5 | . . . 5 Assembled 7 | . . 7 . Best Kill Streak 7 | 4 4 7 3 Combat Bots Only 7 | . 3 7 3 Max Kills in Single Turn 3 | 1 1 3 2 Gunslinging . | . . . . Exploded 3 | . . 3 2 Melee . | . . . . Uniques/NPCs Destroyed . | . . . . Combat | -11 -10 -10 -10 -------- Run | Yrd Mat Min Sub Hostile Shots Fired 118 | . 43 34 41 Missed 34 | . 12 12 10 Damage Taken 1898 | . 372 955 571 Core 260 | . 82 90 88 Absorbed by Shields . | . . . . Core Remaining (%) 100 | 100 . . . Volleys Fired 85 | 9 38 12 26 Largest 2 | 2 2 2 2 Hottest 80 | 40 80 70 70 Shots Fired 154 | 18 76 17 43 Gun 88 | 18 58 . 12 Cannon 57 | . 18 11 28 Launcher 9 | . . 6 3 Special . | . . . . Kinetic 137 | 18 68 11 40 Thermal 8 | . 8 . . Explosive 9 | . . 6 3 Electromagnetic . | . . . . Robot Hit Streak 15 | 3 13 5 15 Robot Miss Streak 4 | 2 3 2 4 Penetration Max . | . . . . Secondary Targets 2 | . 2 . . Max Gunslinging Chain 1 | . 1 . . Shots Hit Robots 103 | 9 50 10 34 Core Hits 63 | 8 27 14 14 Critical Kills . | . . . . Critical Parts Destroyed 1 | 1 . . . Critical Strikes 3 | 1 . 1 1 Destroy 1 | 1 . . . Blast 2 | . . 1 1 Melee Attacks . | . . . . Impact . | . . . . Slashing . | . . . . Piercing . | . . . . Sneak Attacks . | . . . . Combat Hostiles . | . . . . Follow-up Attacks . | . . . . Damage Inflicted 2443 | 138 705 641 959 Guns 934 | 138 500 . 296 Cannons 689 | . 194 104 391 Explosions 809 | . . 537 272 Melee . | . . . . Ramming 11 | . 11 . . Kinetic 1535 | 138 606 104 687 Thermal 88 | . 88 . . Explosive 809 | . . 537 272 Electromagnetic . | . . . . Impact . | . . . . Slashing . | . . . . Piercing . | . . . . Highest Corruption 10 | . . 10 10 Average Corruption 9 | . . 9 10 Corruption Purged . | . . . . Corruption Blocked . | . . . . Effects 37 | . . 4 33 Message Errors 6 | . . 1 5 Matter Fused 8 | . . 2 6 Heat Flow Errors 4 | . . . 4 Energy Discharges 4 | . . 1 3 Parts Rejected 2 | . . . 2 Data Loss (minor) 6 | . . . 6 Data Loss (major) 3 | . . . 3 Misfires 2 | . . . 2 Weapon Failures 2 | . . . 2 Overload Shots . | . . . . Overflow Damage 87 | . . 14 73 Projectiles . | . . . . Explosions 87 | . . 14 73 Melee . | . . . . Knockbacks 5 | . . 3 2 Impact . | . . . . Kinetic 5 | . . 3 2 Secondary . | . . . . Self-Inflicted Damage 157 | . . 122 35 Shots 6 | . . 4 2 Rammed 2 | . 2 . . Targets Rammed 2 | . 2 . . Kicked . | . . . . Crushed . | . . . . Highest Temperature 242 | . 90 57 242 Average Temperature 41 | . 28 19 102 Received Heat Transfer 362 | . 168 92 102 Siege Activations . | . . . . Robots Corrupted . | . . . . Combat Hostiles . | . . . . Parts Fried . | . . . . Impact Corruptions . | . . . . Robots Melted . | . . . . Combat Hostiles . | . . . . Parts Melted . | . . . . Heat Transferred 185 | . 185 . . Parts Sabotaged . | . . . . Parts Stolen . | . . . . Parts Stripped . | . . . . Power Chain Reactions . | . . . . Alert | -11 -10 -10 -10 ------- Run | Yrd Mat Min Sub Peak Influence 165 | 35 165 97 . Initial 42 | . 22 42 . Average 68 | 17 72 90 . Maximum Alert Level . | . . . . Low Security (%) 100 | 100 100 100 . Level 1 . | . . . . Level 2 . | . . . . Level 3 . | . . . . Level 4 . | . . . . Level 5 . | . . . . High Security . | . . . . Max Security . | . . . . Squads Dispatched 1 | . 1 . . Investigation . | . . . . Extermination . | . . . . Reinforcement 1 | . 1 . . Assault . | . . . . Garrison . | . . . . Intercept . | . . . . Searches Triggered . | . . . . Construction Impeded . | . . . . Haulers Reinforced . | . . . . Active Scanning Responses . | . . . . Cargo Convoy Interrupts . | . . . . Stealth | -11 -10 -10 -10 --------- Run | Yrd Mat Min Sub Distress Signals 2 | . 2 . . Communications Jammed . | . . . . Distress Signals . | . . . . Times Spotted 48 | . 17 21 10 Peak Tracking Total 9 | . 5 9 3 Tactical Retreats 1 | . 1 . . Traps | -11 -10 -10 -10 ------- Run | Yrd Mat Min Sub Traps Triggered . | . . . . Indirectly . | . . . . Trap Hack Attempts . | . . . . Triggered . | . . . . Disarmed . | . . . . Reprogrammed . | . . . . Reused . | . . . . Traps Extracted . | . . . . Installed . | . . . . Triggered . | . . . . Machines | -11 -10 -10 -10 ---------- Run | Yrd Mat Min Sub Machines Disabled 1 | . 1 . . Max in Single Turn 1 | . 1 . . Machines Repaired . | . . . . Machines Dismantled . | . . . . Machines Sabotaged . | . . . . Overloaded Fab Kills . | . . . . Hacking | -11 -10 -10 -10 --------- Run | Yrd Mat Min Sub Machines Accessed 3 | . 2 1 . Terminals 3 | . 2 1 . Fabricators . | . . . . Repair Stations . | . . . . Recycling Units . | . . . . Scanalyzers . | . . . . Garrison Access . | . . . . Total Hacks 10 | . 6 4 . Successful 3 | . 2 1 . Failed 7 | . 4 3 . Catastrophic 1 | . 1 . . Database Lockouts . | . . . . Manual 8 | . 8 . . Terminals 10 | . 6 4 . Fabricators . | . . . . Repair Stations . | . . . . Recycling Units . | . . . . Scanalyzers . | . . . . Garrison Access . | . . . . Terminal Hacks 3 | . 2 1 . Robot Analysis 1 | . 1 . . Branch Access Points 1 | . 1 . . Zone Layout 1 | . . 1 . Fabricator Hacks . | . . . . Repair Station Hacks . | . . . . Recycling Unit Hacks . | . . . . Scanalyzer . | . . . . Garrison Access Hacks . | . . . . Unauthorized Hacks . | . . . . Terminals . | . . . . Fabricators . | . . . . Repair Stations . | . . . . Recycling Units . | . . . . Scanalyzers . | . . . . Garrison Access . | . . . . Data Cores Recovered . | . . . . Used . | . . . . Hacking Detections 3 | . 2 1 . Full Trace Events 1 | . . 1 . Feedback Events . | . . . . Feedback Blocked . | . . . . Robot Schematics Acquired . | . . . . Robots Built . | . . . . Authchips . | . . . . Time . | . . . . Total Robot Build Rating . | . . . . Part Schematics Acquired . | . . . . Parts Built . | . . . . Authchips . | . . . . Time . | . . . . Total Part Build Rating . | . . . . Parts Repaired . | . . . . Time . | . . . . Parts Recycled . | . . . . Recycled Matter . | . . . . Retrieved Matter . | . . . . Retrieved Components . | . . . . Parts Scanalyzed . | . . . . Part Schematics Acquired . | . . . . Parts Damaged . | . . . . Bothacking | -11 -10 -10 -10 ------------ Run | Yrd Mat Min Sub Used RIF Installer . | . . . . Robots Hacked . | . . . . Non-combat . | . . . . Combat . | . . . . Robot Hacks Applied . | . . . . Relay Couplers Released . | . . . . Fabnet Peak Effective % . | . . . . Robots Rewired . | . . . . Allies Hacked . | . . . . Hacks Repelled . | . . . . Allies | -11 -10 -10 -10 -------- Run | Yrd Mat Min Sub Total Allies . | . . . . Largest Group . | . . . . Highest-Rated Group . | . . . . Highest-Rated Ally . | . . . . Total Orders . | . . . . Ally Attacks . | . . . . Total Damage . | . . . . Kills . | . . . . Allies Corrupted . | . . . . Allies Melted . | . . . . Intel | -11 -10 -10 -10 ------- Run | Yrd Mat Min Sub Robot Analysis Total 1 | . 1 . . Derelict Logs Recovered 1 | . . . 1 Drone Launches . | . . . . Drone Recoveries . | . . . . Exploration | -11 -10 -10 -10 ------------- Run | Yrd Mat Min Sub Turns Passed 2903 | 231 1561 269 842 Spaces Moved 915 | 118 373 77 347 Core 4 | 4 . . . Treads 542 | 114 373 55 . Legs . | . . . . Wheels 369 | . . 22 347 Hover . | . . . . Flight . | . . . . Fastest Speed 50 | 50 160 200 119 Average Speed 235 | 156 301 291 178 Slowest Speed 480 | 160 320 480 215 Overloaded Moves . | . . . . Propulsion Burnouts . | . . . . Robots Hopped . | . . . . Cave-ins Triggered 1 | . . 1 . Exploration Rate (%) 27 | 5 49 25 29 Regions Visited 3 Branch Regions 2 Pre-discovered Areas . | . . . . Known Exits Taken 2 | . 1 1 . Unknown Exits Taken 1 | 1 . . . Scrap Searched 5 | . . 1 4 Spaces Dug . | . . . . Terrain Destroyed 43 | . . 24 19 Melee . | . . . . Projectile . | . . . . AOE 43 | . . 24 19 Terrain Rammed . | . . . . Walls Destroyed . | . . . . Machines Disabled . | . . . . Actions | -11 -10 -10 -10 --------- Run | Yrd Mat Min Sub Total 1508 | 143 734 103 528 Wait 406 | 8 269 4 125 Move 912 | 117 372 76 347 Hop . | . . . . Pick Up 42 | 2 32 1 7 Fast Attach 15 | 7 2 1 5 Attach 7 | . . 5 2 Detach 6 | . 2 . 4 Swap 15 | . 5 3 7 Drop 18 | . 12 1 5 Fire 85 | 9 38 12 26 Melee . | . . . . Ram . | . . . . Kick . | . . . . Crush 2 | . 2 . . Escape Stasis . | . . . . Rewire . | . . . . Trap . | . . . . Miscellaneous . | . . . . Route ------- -11/Scrapyard -10/Materials (discovered 4 exits: [*Mat x2] / *Min x2) -10/Mines -10/Subcaves History --------- Turn | Location | Event 37 | -11/Scrapyard | Discovered new exit (range 15) 232 | -11/Scrapyard | Entered Materials 325 | -10/Materials | Build established: Mutant 841 | -10/Materials | Discovered new exit (range 14) 1296 | -10/Materials | Discovered new exit (range 15) 1595 | -10/Materials | Discovered new exit (range 13) 1611 | -10/Materials | Identified exit to Mines 1611 | -10/Materials | Discovered new exit (range 15) 1793 | -10/Materials | Entered Mines 1827 | -10/Mines | Met a Derelict bent on vengeance 1931 | -10/Mines | Assembled infested the area 1975 | -10/Mines | Core integrity fell below 50% 1984 | -10/Mines | Crushed by falling debris 1984 | -10/Mines | System corruption reached 10% 2024 | -10/Mines | Destroyed 7 combat bots 2034 | -10/Mines | Lost 6 parts (1p3n1u1w) 2045 | -10/Mines | Discovered new exit (range 8) 2060 | -10/Mines | Identified exit to Subcaves 2062 | -10/Mines | Entered Subcaves 2074 | -10/Subcaves | Shifting Twisted Machinery released Riot Gun 2193 | -10/Subcaves | Shifting Twisted Machinery released Mak. Axe 2308 | -10/Subcaves | Shifting Twisted Machinery released Sub. Optics 2312 | -10/Subcaves | Shifting Twisted Machinery released Mak. Light Armor Plating 2733 | -10/Subcaves | Core integrity fell below 20% 2904 | -10/Subcaves | Destroyed by SO-3X1(R) with Subdweller Laser Last Messages --------------- 02802_ Acquired Hvy. Battle Rifle. 02803_ Acquired 5 matter. 02805_ Acquired 14 matter. 02808_ Subatomizers dissect the Mni. Grenade Launcher, destroying it. 02808_ Acquired 10 matter. 02809_ Acquired 5 matter. 02816_ System corrupted: Heat flow error (+121). 02817_ Acquired 22 matter. 02826_ Dropped Lgt. Cannon. 02826_ Acquired Riot Gun. 02833_ Acquired 10 matter. 02854_ Sub. Monowheel shoots sparks and powers down. 02867_ Acquired Sub. Monowheel. 02869_ Dropped Broken Sub. Monowheel. 02869_ Acquired 20 matter. 02870_ System corrupted: Substantial component data lost. 02872_ Acquired Ion Engine. 02881_ Acquired 10 matter. 02896_ System corrupted: Mak. Shrapnel Gun jammed. 02901_ System corrupted: Battle Cannon rejected. Map ----- +----------------------------------------------------+ | | | | | | | | | | | | | ?????????????????????????????????????????????????? | | ?????????????????????????????????????????????????? | | ?????????????????????????????????????????????????? | | ?????????????????????????????????????????????????? | | ?????????????????????????????????????????????????? | | ?????????????????????????????????????????????????? | | ?????????????????????????????????????????????????? | | ?????????????????????????????????????????????????? | | ?????????????????????????????????????????????????? | | ?????????????????????????????????????????????????? | | ?????????????????????????????????????????????????? | | ?????????????????????????????????????????????????? | | ?????????????????????????????????????????????????? | | ?????????????????????????????????????????????????? | | ?????????????????????????????????????????????????? | | ?????????????????????????????????????????????????? | | ##?????????????????????####??????????????????????? | | # #???????????????????## ##?????????????????????? | | ?????????????????## %% #?????????????????????? | | ??????######?????# % @##?????????????????????? | | # ?????## #????## R##??????????????????????? | | ## ###### #?#### ##?????????????????????? | | # # ## #?# ###???????????????????? | | # ## #### ###??## ##??????????? | | # # # # ###????????? | | ?????? | | ] =%! ?????? | | ! ## ## ##### #?????? | | [ ""%########## #?????? ??????? | | """ " =##???????# # #????????????????? | | "## ##" ##??????# ## #????????????????? | | ?#" ?## ###????## #?# ##????????????????? | | ## ??## ##???# ##?? #????????????????? | | "???# #???## # ?? ???????????????? | | "???## #????# # # ? ??????????????? | | #"""###### ##??? ### ? ?????????????? | | # " ## ## ##### ?? ?# # ?????????????? | | """ & #? #?? ??####?????????????? | | """" & #######?? ????????????????????? | | """" # # #????????# ?????????????????????? | | " #### ## #???????????????????????????????? | | ## #???# ! ##?###???????????????????????????????? | | ?##????# ##????????????????????????????????????? | | ???????## #?????????????????????????????????????? | +----------------------------------------------------+ Best States ------------- Heat Dissipation 25 Energy Generation 14 Energy Capacity 250 Matter Stores 300 Matter Capacity 300 Sight Range 16 Terrain Scan Density 10 Armor Coverage 225 Evasion (%) 40 Recoil Reduction 2 Item Schematics ----------------- None Robot Schematics ------------------ None Fabricated ------------ Nothing Alien Tech Used ----------------- None Achievements -------------- None Challenges ------------ None Game ------ Seed ContainmentTimingDatajack Manual? 0 Play Time 00:21:37 Cumulative 53.3 hours Start 2024.12.25 @ 21:54:14 End 2024.12.25 @ 22:24:16 Sessions 1 Manual Loads 0 Difficulty Rogue Special Mode None Game No. 53 Rogue 53 Adventurer 0 Explorer 0 Win Type - Total 1 Types 0/0/0/1/0/0/0/0/0 Lore% 42 Gallery% 42 Achievement% 43 Wizard Run 0 Options --------- Layout 0 ASCII 0 Keyboard 1 Movement Numpad Keybinds 0 Fullscreen 1 Font 24/Smallcaps Map View 76x56 Zoom Use 0% Tactical HUD 1 Map Filters NONE Filters NONE Steam 1 RUN: 1ef98de1-22fa-450f-a64c-1e321e3c5599